Cogmind - Beta 16.1 @@@ ROGUE MODE // 2026.02.01 @ 16:13:23 Player: Boris Result: Destroyed by Q615-h with Ragnarok Missile Launcher Performance ------------- Evolutions (9) 4500 Regions Visited (26) 5200 Robots Destroyed (454) 2270 Value Destroyed (20738) 20738 Prototype IDs (73) 1460 Alien Tech Used (0) 0 Bonus (7511) 7511 TOTAL SCORE: 41679 Bonus ------- High Alert Combat Kills 3381 Follower Combat Kills 2055 Entered DSFs 500 Network Hubs Disabled 200 Registered with UFD 300 Met Optimus in HQ 500 Met Data Miner 300 Built Enhanced Grunts 300 A7 Reached Mainframe 300 Met R17 at Cetus 500 Scanned by Researcher 500 Friendly Fire -1325 Cogmind --------- Core Integrity 0/1600 Matter 270/300 Energy 84/100 System Corruption 33% Temperature Cool (0) Movement Core (100) Ox1 Location -1/Access Parts ------- > --- POWER (3) -------- (None) > --- PROPULSION (10) -- (None) > --- UTILITY (4) ------ Advanced Heat Sink > --- WEAPON (8) ------- Gravity Flail > --- INVENTORY (5) ---- Gamma Bomb Array Peak State ------------ > --- POWER ------------ Reinforced Antimatter Reactor Light Quantum Reactor Reinforced Quantum Reactor > --- PROPULSION ------- Medium Treads Medium Treads Heavy Siege Treads Biometal Heavy Treads Advanced Heavy Siege Treads Centrium Leg High-density Centrium Leg > --- UTILITY ---------- Huge Storage Unit Experimental Terrain Scanner Terrain Scan Processor Experimental Melee Analysis Suite > --- WEAPON ----------- Heavy Quantum Rifle Enhanced Nova Cannon Enhanced Nova Cannon Helical Railgun Enhanced Hardcell Cannon Enhanced Hardcell Cannon Particle Cleaver Kinetic Spear > --- INVENTORY -------- Advanced Heat Sink Advanced Heat Sink Experimental Matter Compressor Experimental Matter Compressor Experimental Melee Analysis Suite Experimental Weapon Cycler Experimental Transmission Jammer Centrium Medium Armor Plating Experimental EM Shield Advanced Remote Force Field Improved System Guard Advanced System Restoration Module Long-range Tractor Beam Trap Extractor Advanced Drone Bay Heavy Laser Cooled Phase Cannon Tesla Bomb Launcher Micro-nuke Launcher Advanced Micro-nuke Launcher Advanced Micro-nuke Launcher Advanced Datajack Particle Cleaver [Rating: 213] Favorites ----------- Power Antimatter Reactor Engine Heavy Ion Engine Power Core Enhanced Fission Core Reactor Antimatter Reactor Propulsion Armored Treads Treads Armored Treads Leg High-density Centrium Leg Wheel Armored Huge Wheel Hover Unit Antigrav Array Flight Unit Q-thruster Utility Huge Storage Unit Device Improved Cooling System Storage Huge Storage Unit Processor Makeshift Salvage Targeting Computer Hackware Hacking Suite Protection Reflective Plating Weapon KE Penetrator Energy Gun Improved EM Shotgun Energy Cannon Cooled Plasma Cannon Ballistic Gun KE Penetrator Ballistic Cannon Advanced Assault Cannon Launcher Advanced Micro-nuke Launcher Special Weapon Improved Remote Datajack Impact Weapon Gravity Flail Slashing Weapon Scythe Piercing Weapon Kinetic Spear Special Melee Weapon Advanced Datajack Build | -11 -10 -10 -9 -9 -9 -9 -6 -6 -6 -6 -6 -6 -5 -5 -4 -4 -4 -4 -4 -4 -4 -3 -3 -2 -2 -1 ------- Run | Yrd Mat Min Mat Sto Rec Scr Fac Was Fac Low Low Dat Pro Fac Fac Was Fac Ext Cet Arc Hub Res DSF Res Tes Acc Slots Evolved 18 | . . . 2 . . . 6 . . . . . . 2 2 . . . . . . 2 . 2 . 2 Power 2 | . . . . . . . 1 . . . . . . . . . . . . . . 1 . . . . Propulsion 8 | . . . . . . . 2 . . . . . . 1 1 . . . . . . . . 2 . 2 Utility 2 | . . . . . . . 2 . . . . . . . . . . . . . . . . . . . Weapon 6 | . . . 2 . . . 1 . . . . . . 1 1 . . . . . . 1 . . . . Parts Attached 325 | 8 6 . 24 10 . 4 5 8 25 12 4 . 15 25 7 10 8 12 10 2 3 6 6 26 57 32 Power 36 | 1 2 . 2 2 . . . 1 3 . . . 1 2 . 2 1 1 2 . 2 . 1 5 5 3 Engine 8 | 1 2 . 2 2 . . . . . . . . . 1 . . . . . . . . . . . . Core 3 | . . . . . . . . . . . . . . 1 . . . . . . 2 . . . . . Reactor 25 | . . . . . . . . 1 3 . . . 1 . . 2 1 1 2 . . . 1 5 5 3 Propulsion 64 | 2 1 . 4 2 . 1 1 2 5 2 2 . 2 4 1 3 2 2 2 . . . . 4 8 14 Treads 43 | 2 1 . 4 2 . . 1 2 5 2 2 . 1 1 1 3 2 2 2 . . . . 4 5 1 Leg 8 | . . . . . . . . . . . . . . . . . . . . . . . . . 3 5 Wheel 5 | . . . . . . 1 . . . . . . 1 3 . . . . . . . . . . . . Hover 5 | . . . . . . . . . . . . . . . . . . . . . . . . . . 5 Flight 3 | . . . . . . . . . . . . . . . . . . . . . . . . . . 3 Utility 87 | 2 1 . 6 1 . 2 2 2 5 4 . . 3 7 3 4 1 1 . 1 1 3 1 10 18 9 Device 52 | 1 . . 2 1 . 1 2 1 3 4 . . 2 5 3 4 . 1 . 1 . 1 . 8 9 3 Storage 5 | 1 1 . 1 . . . . . . . . . . . . . . . . . . 1 . 1 . . Processor 19 | . . . 1 . . 1 . 1 1 . . . . 1 . . 1 . . . 1 . 1 . 7 4 Hackware 4 | . . . 1 . . . . . . . . . . 1 . . . . . . . 1 . . 1 . Protection 7 | . . . 1 . . . . . 1 . . . 1 . . . . . . . . . . 1 1 2 Artifact . | . . . . . . . . . . . . . . . . . . . . . . . . . . . Weapon 138 | 3 2 . 12 5 . 1 2 3 12 6 2 . 9 12 3 1 4 8 6 1 . 3 4 7 26 6 Energy Gun 30 | 1 . . 4 3 . . . . 1 2 1 . 1 4 . . 2 2 . . . 1 . 1 7 . Energy Cannon 8 | . . . . 1 . . . . 3 . . . . . . . . . . . . . . . 4 . Ballistic Gun 68 | 2 2 . 6 . . 1 2 2 7 3 . . 2 8 . . 1 5 6 1 . 2 4 5 9 . Ballistic Cannon 8 | . . . . . . . . . . . . . 6 . . . . . . . . . . . 1 1 Launcher 8 | . . . . 1 . . . . . 1 1 . . . . . . . . . . . . . 4 1 Special Weapon 5 | . . . . . . . . 1 1 . . . . . 1 . 1 . . . . . . 1 . . Impact Weapon 2 | . . . . . . . . . . . . . . . . . . . . . . . . . . 2 Slashing Weapon 3 | . . . 1 . . . . . . . . . . . . . . . . . . . . . 1 1 Piercing Weapon 4 | . . . . . . . . . . . . . . . 2 1 . . . . . . . . . 1 Special Melee Weapon 2 | . . . 1 . . . . . . . . . . . . . . 1 . . . . . . . . Unidentified Prototypes 42 | . . . 1 2 . . . . 3 . . . . . 1 1 . . 2 . 1 3 . 4 20 4 Corrupted Parts 11 | . . . . . . . . . . . . . . . . . . . . . . . . . 7 4 System Corruption 60 | . . . . . . . . . . . . . . . . . . . . . . . . . 49 11 Parts Lost 90 | . 2 . . 1 . . . . 4 8 . . 7 6 . . . 2 . . 3 . . 9 20 28 Power 10 | . 1 . . . . . . . 1 1 . . 1 1 . . . . . . . . . 1 . 4 Propulsion 29 | . . . . . . . . . 1 2 . . 2 2 . . . 1 . . . . . 2 4 15 Utility 20 | . . . . . . . . . 1 3 . . 2 1 . . . . . . 2 . . . 5 6 Weapon 31 | . 1 . . 1 . . . . 1 2 . . 2 2 . . . 1 . . 1 . . 6 11 3 Highest Loss Streak 10 | . 2 . . 1 . . . . 1 4 . . 5 4 . . . 1 . . 2 . . 4 9 10 To Critical Strikes 2 | . . . . . . . . . . . . . . . . . . 1 . . . . . . 1 . Average Backups 19 | 2 8 12 14 14 15 19 17 21 22 20 22 23 21 21 21 16 22 21 22 22 21 20 21 22 21 13 Power 1 | . 1 1 1 1 1 . 1 1 2 1 1 1 1 1 1 1 2 1 1 2 1 1 1 . . . Propulsion 1 | . . . . . . 1 1 1 2 1 1 2 1 1 . 1 3 2 2 3 3 3 3 1 . . Utility 8 | 1 2 3 7 7 8 9 8 10 9 8 7 7 7 10 10 7 10 10 10 10 10 10 9 12 13 9 Weapon 5 | . 3 6 4 5 6 6 5 6 5 6 8 9 6 5 6 3 4 5 5 5 5 4 5 6 5 3 Tool/Special . | . . . . . . . . . . . . . . . . . . . . . . . . . . . Unused Backups 57 | . 2 3 7 5 . . . . 10 . 1 . . 3 3 1 1 3 2 . 1 . . 6 3 6 Power 6 | . 1 . 1 . . . . . . . 1 . . . 1 . . 1 . . 1 . . . . . Propulsion 5 | . . 1 . . . . . . 2 . . . . . . . . . 1 . . . . . 1 . Utility 29 | . 1 1 4 1 . . . . 5 . . . . 2 2 1 . 1 1 . . . . 5 2 3 Weapon 17 | . . 1 2 4 . . . . 3 . . . . 1 . . 1 1 . . . . . 1 . 3 Tool/Special . | . . . . . . . . . . . . . . . . . . . . . . . . . . . Average Slot Usage (%) 89 | . 100 100 98 98 100 93 83 89 87 98 92 63 92 90 92 87 86 87 84 83 81 78 80 80 75 51 Engine 4 | . 14 14 11 11 11 11 6 6 2 . . . . 2 5 4 . . . . . . . . . . Reactor 6 | . . . . . . . . 5 10 12 13 13 12 6 . 2 10 10 10 10 6 . . 5 11 6 Treads 17 | . 28 28 22 21 22 9 11 13 15 25 13 13 11 6 14 16 18 19 15 15 15 14 14 16 15 8 Wheel 2 | . . . . . . 6 6 3 . . 6 6 7 13 10 6 . . . . . . . . . . Device 10 | . 14 14 3 11 11 9 11 6 10 19 20 20 15 10 9 6 9 9 10 9 7 3 4 6 6 3 Storage 6 | . 14 14 11 11 11 10 6 6 6 6 6 6 6 5 5 3 5 5 5 5 5 4 4 4 4 2 Processor 3 | . . . . . . 1 6 12 5 . . . . 2 5 5 5 5 5 5 6 7 7 4 4 5 Energy Gun 10 | . 9 . 4 31 44 39 13 . . 18 24 2 3 1 . . 6 6 . . . . . . 8 2 Ballistic Gun 19 | . 18 28 36 . . 2 18 27 32 6 . . 1 17 31 31 27 26 35 32 34 37 38 32 18 2 Ballistic Cannon 1 | . . . . . . . . . . . . . 26 8 . . . . . . . . . . . 3 Slashing Weapon 1 | . . . . 10 . 2 . 3 . 1 1 . . 3 . . . . . . . . . . . 2 Peak Build Rating 213 | 8 12 12 25 28 26 37 48 73 95 80 82 76 80 87 96 110 122 128 148 150 155 158 160 193 195 213 Average Rating 85 | 6 9 12 19 25 26 30 47 65 79 77 80 56 73 78 87 94 112 124 142 149 146 147 152 185 173 126 On Entrance 83 | 1 8 12 12 25 27 26 37 48 73 77 78 81 71 70 82 89 109 116 128 148 150 131 147 160 162 194 Avg Prop Armor Cover (%) 12 | . . . . . . . 11 10 . 14 14 21 8 8 16 16 . . . 22 7 6 . 5 4 12 Naked Turns 3 | . . . . . . . . . . . . . . . . . . . . . . . . . . 3 Heaviest Build 236 | 15 32 32 43 42 41 103 108 125 149 148 143 129 141 142 130 159 164 170 178 179 179 152 170 222 224 236 Greatest Support 320 | 40 40 40 43 46 46 46 28 140 140 80 48 28 113 72 70 196 210 210 230 230 230 230 230 320 320 281 Greatest Overweight (x) 57 | . . . . . . 3 3 4 1 5 5 4 5 13 4 4 1 . 1 57 . 1 . . 7 6 Average Overweight (x) 1 | . . . . . . 2 3 2 . 1 4 4 3 2 3 1 . . . 13 . . . . . . Largest Inventory Capacity 25 | 8 15 15 25 15 15 25 25 25 25 25 25 25 25 25 25 25 25 25 25 25 25 25 25 25 25 25 Average Capacity 22 | 7 11 15 15 15 15 24 25 25 25 25 25 25 25 25 25 18 25 25 25 25 25 25 25 25 25 15 Most Carried 25 | 3 15 15 16 15 15 24 22 25 25 25 25 25 25 25 25 25 25 25 25 25 25 25 25 25 25 25 Average Carried 20 | 2 8 14 14 14 15 19 17 23 24 23 24 25 23 24 23 17 24 23 24 25 24 23 24 24 23 14 Final Capacity 25 | 8 15 15 15 15 15 25 25 25 25 25 25 25 25 25 25 25 25 25 25 25 25 25 25 25 25 5 Final Carried 25 | 3 15 15 15 15 15 23 18 23 25 24 25 25 25 25 23 25 25 24 25 25 25 24 25 25 25 1 Class Distribution -------------------- 34% | Scavenger-Executioner 21% | Gunner 8% | Mutant 7% | Scavenger-Gunner 6% | Scavenger-Tank 5% | Scavenger-Skirmisher 5% | Tank 3% | Commander-Executioner Dominant Class ---------------- Mutant | -10/Materials Mutant | -10/Mines Gunner | -9/Materials Gunner | -9/Storage Gunner | -9/Recycling Gunner | -9/Scraptown Gunner | -6/Factory Gunner | -6/Waste Scavenger-Tank | -6/Factory Scavenger-Skirmisher | -6/Lower Caves Pyromaniac-Gunner | -6/Lower Caves Scavenger-Mutant | -6/Data Miner Tank | -5/Proximity Caves Scavenger-Executioner | -5/Factory Scavenger-Executioner | -4/Factory Scavenger-Executioner | -4/Waste Scavenger-Executioner | -4/Factory Commander-Executioner | -4/Extension Scavenger-Executioner | -4/Cetus Scavenger-Executioner | -4/Archives Scavenger-Executioner | -4/Hub_04(d) Scavenger-Executioner | -3/Research Scavenger-Executioner | -3/DSF Scavenger-Executioner | -2/Research Scavenger-Executioner | -2/Testing Scavenger-Gladiator | -1/Access Resources | -11 -10 -10 -9 -9 -9 -9 -6 -6 -6 -6 -6 -6 -5 -5 -4 -4 -4 -4 -4 -4 -4 -3 -3 -2 -2 -1 ----------- Run | Yrd Mat Min Mat Sto Rec Scr Fac Was Fac Low Low Dat Pro Fac Fac Was Fac Ext Cet Arc Hub Res DSF Res Tes Acc Matter Collected 21981 | 281 191 48 880 202 18 27 . 559 2598 1076 164 . 1379 1209 161 2271 495 862 442 449 634 247 1326 2594 3156 712 Remotely 2715 | . . . . . . . . . . . . . . 488 . . . 392 . 246 131 . . 1138 320 . Salvage Created 29074 | 80 297 19 1346 2005 301 . . 1388 2725 1518 237 . 920 1702 370 992 315 1078 524 355 1647 160 1206 4454 4467 968 Parts 1485 | 4 14 3 88 100 15 . . 33 127 39 9 . 30 95 23 24 24 69 27 21 86 5 72 261 245 71 Haulers Intercepted 24 | . 1 . 6 5 . . . . 3 . . . . 2 1 . . . . . 1 . . 2 1 2 Recyclers Shooed 11 | . . . 1 . 1 . . . 1 . . . . . . . . 1 . . . . . 5 1 1 Parts Field Recycled . | . . . . . . . . . . . . . . . . . . . . . . . . . . . Retrieved Matter . | . . . . . . . . . . . . . . . . . . . . . . . . . . . Parts Self-Destructed 74 | . . . . . . . . . . 37 7 . 30 . . . . . . . . . . . . . Prevented . | . . . . . . . . . . . . . . . . . . . . . . . . . . . Parts Restored . | . . . . . . . . . . . . . . . . . . . . . . . . . . . Kills | -11 -10 -10 -9 -9 -9 -9 -6 -6 -6 -6 -6 -6 -5 -5 -4 -4 -4 -4 -4 -4 -4 -3 -3 -2 -2 -1 ------- Run | Yrd Mat Min Mat Sto Rec Scr Fac Was Fac Low Low Dat Pro Fac Fac Was Fac Ext Cet Arc Hub Res DSF Res Tes Acc Combat Hostiles Destroyed 324 | . 7 . 20 28 2 . . 3 36 25 5 . 21 20 8 . 3 13 6 1 14 . 13 41 45 13 Melee 10 | . . . . . . . . . . . 1 . . . 1 . 1 . . . . . . . . 7 Guns 251 | . 7 . 19 20 2 . . 3 35 17 . . 8 16 4 . 2 11 6 1 14 . 13 41 31 1 Cannons 22 | . . . . . . . . . 1 3 1 . 12 4 . . . 1 . . . . . . . . AOE 30 | . . . 1 7 . . . . . 2 3 . . . 3 . . . . . . . . . 9 5 Classes Destroyed 27 | 2 4 . 6 2 . . . 1 5 1 . . 2 . . . . . . . . . . 2 2 . Worker 21 | . . . 3 1 . . . . 2 . . . . 3 . . 1 . . . 2 . . 2 5 2 Builder 28 | . . . 1 2 . . . . . . . . . 5 . . 1 2 . . . . . 3 5 9 Tunneler 5 | 1 . 1 . . . . . . 1 . . . . 1 . . 1 . . . . . . . . . Hauler 24 | . 1 . 6 5 . . . . 3 . . . . 2 1 . . . . . 1 . . 2 1 2 Recycler 16 | 1 . . . 2 2 . . . 1 . . . . 2 . . . 1 . . 1 1 . 3 1 1 Minesweeper 1 | . . . . . . . . . . . . . 1 . . . . . . . . . . . . . Mechanic 3 | . . . . 2 . . . . . . . . . . . . . . . . . . . . 1 . Operator 8 | . . . 1 2 . . . . . . . . . . . . . . . 4 . . . . 1 . Watcher 11 | . . . 3 2 . . . . 1 . . . . 1 . . . . 1 . . . . 1 2 . Swarmer 48 | . 2 . . 3 . . . . 3 5 3 . 3 5 5 . . 4 . . . . 5 5 2 3 Grunt 135 | . 2 . 14 20 . . . . 16 15 . . 14 6 1 . . 2 . . 2 . 3 13 25 2 Brawler 8 | . . . . . . . . . 1 1 . . 1 . . . . . . . . . . 2 3 . Duelist 6 | . . . 2 1 . . . . . . . . . . . . . . . . . . . . 2 1 Protector 2 | . . . . 1 . . . . . . . . . . . . . . . . . . . 1 . . Researcher 3 | . . . . . . . . . . . . . . . . . . . . . . . . . 3 . Sentry 31 | . . . 4 7 2 . . . 1 1 . . 1 . . . 1 7 . 1 2 . . 3 1 . Demolisher 1 | . . . . . . . . . . . . . . . . . . . . . . . . 1 . . Specialist 7 | . . . . . . . . . 2 . . . . . . . . . . . 2 . 3 . . . Hunter 30 | . . . . . . . . . 8 2 2 . . 3 . . 1 . . . 4 . . 6 4 . Programmer 40 | . . . . . . . . . 2 1 . . 1 6 1 . 1 . . . 3 . 1 10 7 7 Heavy 5 | . . . . . . . . . 3 . . . . . . . . . . . 1 . 1 . . . Behemoth 1 | . . . . . . . . . . . . . 1 . . . . . . . . . . . . . Compactor 5 | . . . . . . . . 5 . . . . . . . . . . . . . . . . . . Cetus Guard 6 | . . . . . . . . . . . . . . . . . . . 6 . . . . . . . Enhanced Grunt 2 | . . . . . . . . . . . . . . . . . . . . . 2 . . . . . Alpha 7 1 | . . . . . . . . . . . . . . . . . . . . . . . . . 1 . Subdweller 3 | . 3 . . . . . . . . . . . . . . . . . . . . . . . . . Scraphulk 1 | . . . . . . . . . . . . . . . . . . . . . . . . 1 . . Samaritan 2 | . . . . . . . . . . 2 . . . . . . . . . . . . . . . . Thug 1 | . . . . . . . . . . . . . . . 1 . . . . . . . . . . . Savage 1 | . . . . . . . . . . . . . . . . . . . . 1 . . . . . . Best Kill Streak 15 | 1 3 1 5 12 4 . . 2 4 8 3 . 10 10 5 . 2 5 4 3 8 1 7 15 10 14 Combat Bots Only 13 | . 3 . 5 8 1 . . 2 4 8 3 . 10 5 5 . 1 5 4 1 6 . 7 13 8 6 Max Kills in Single Turn 6 | 1 1 1 2 4 2 . . 1 3 2 3 . 1 2 3 . 1 3 2 2 3 1 4 3 3 6 Gunslinging 2 | . . . 1 1 . . . . 2 1 . . . 1 1 . . 1 1 . 1 . 2 1 1 . Exploded 3 | . . . 1 2 . . . . . 2 3 . . . 3 . . . . . . . . . 2 2 Melee 1 | . . . . . . . . . . . 1 . . . 1 . 1 . . . . . . . . 1 Uniques/NPCs Destroyed . | . . . . . . . . . . . . . . . . . . . . . . . . . . . Combat | -11 -10 -10 -9 -9 -9 -9 -6 -6 -6 -6 -6 -6 -5 -5 -4 -4 -4 -4 -4 -4 -4 -3 -3 -2 -2 -1 -------- Run | Yrd Mat Min Mat Sto Rec Scr Fac Was Fac Low Low Dat Pro Fac Fac Was Fac Ext Cet Arc Hub Res DSF Res Tes Acc Hostile Shots Fired 1919 | . 56 4 49 48 . . . . 202 140 14 . 131 118 23 . 18 55 31 . 117 . 41 242 313 317 Missed 459 | . 16 2 10 11 . . . . 38 33 2 . 28 27 10 . 8 13 6 . 26 . 14 45 62 108 Hits 1460 | . 40 2 39 37 . . . . 164 107 12 . 103 91 13 . 10 42 25 . 91 . 27 197 251 209 Melee 33 | . . . 9 . . . . . . . . . . . . . . . . . . . . . 24 . Projectile 1427 | . 40 2 30 37 . . . . 164 107 12 . 103 91 13 . 10 42 25 . 91 . 27 197 227 209 AOE 41 | . . . . . . . . . . . . . . . . . . . . . . . . 3 . 38 Critical Strikes 85 | . . . 3 . . . . . 8 5 . . 3 4 . . . 3 6 . 10 . 3 8 23 9 Part Disruptions 5 | . . . . . . . . . . . . . . . . . . . . . 1 . . 1 2 1 Damage Taken 30571 | . 565 21 666 629 10 . . . 2747 1584 118 . 1816 1641 194 . 216 784 367 22 1483 . 891 4534 5972 6311 Core 3293 | . 119 . 120 106 . . . . 260 88 33 . 180 101 17 . 14 13 12 . 27 . 123 215 202 1663 Absorbed by Shields 2629 | . . . . . . . . . 499 269 72 . . . . . 125 327 283 . 312 . . 662 45 35 Reduced by Siege Mode 1629 | . . . . . . . . . 118 15 . . 31 57 . . . 76 55 . 211 . 146 273 647 . Redirected to Shielding 69 | . . . . . . . . . . . . . . . . . . . . . . . . . . 69 Ignored by Resistances 363 | . . . . . . . . . 90 50 . . 223 . . . . . . . . . . . . . Regen/Repaired (Parts) 986 | . 105 . . 203 . 235 . . . . . . . . . . . . . . . . . 443 . . Core Remaining (%) 71 | 100 . 52 . . . 43 . . . . . . 34 89 . . . . . . 92 . 90 . 71 . Volleys Fired 666 | 5 37 5 53 48 3 . . 26 83 45 6 . 40 38 6 6 11 20 12 13 22 1 15 62 86 23 Largest 8 | 2 2 2 4 3 4 . . 5 5 5 5 . 5 6 6 6 7 7 7 7 7 8 8 8 8 6 Hottest 474 | 70 70 46 135 135 180 . . 125 210 290 375 . 313 244 170 170 290 311 273 234 239 272 283 288 368 474 Shots Fired 3070 | 10 74 10 206 137 14 . . 91 407 190 23 . 197 173 26 36 58 125 75 90 145 8 120 419 398 38 Gun 2795 | 10 74 10 206 135 14 . . 84 400 168 17 . 73 131 24 36 56 120 74 90 145 8 120 409 381 10 Cannon 239 | . . . . . . . . . 5 21 5 . 124 41 . . . 5 1 . . . . 9 7 21 Launcher 21 | . . . . 2 . . . . . 1 1 . . . 1 . . . . . . . . . 9 7 Special 15 | . . . . . . . . 7 2 . . . . 1 1 . 2 . . . . . . 1 1 . Kinetic 2495 | 5 46 10 188 . . . . 84 399 97 . . 156 155 24 36 49 104 71 90 145 8 120 409 271 28 Thermal 273 | 5 28 . . . . . . . 6 92 22 . 41 8 . . 5 21 4 . . . . 9 29 3 Explosive 18 | . . . . 2 . . . . . 1 1 . . . 1 . . . . . . . . . 6 7 Electromagnetic 269 | . . . 18 135 14 . . . . . . . . 9 . . 2 . . . . . . . 91 . Robot Hit Streak 37 | 4 11 1 18 20 12 . . 22 22 14 5 . 13 17 7 13 13 16 37 11 22 5 26 29 37 22 Robot Miss Streak 8 | 2 2 3 5 4 1 . . 1 6 4 2 . 3 3 2 2 2 2 3 3 3 . 1 4 3 8 Penetration Max 2 | . . . . . . . . 1 2 2 . . . 2 . . 1 1 1 1 1 . 1 2 1 . Secondary Targets 89 | . 3 . 3 2 . . . 1 15 4 . . 6 6 1 . . 4 2 . 4 . 5 17 16 . Max Gunslinging Chain 3 | . 1 . 1 1 . . . 1 2 1 . . 1 2 1 . . 1 1 . 2 . 3 2 2 . Shots Hit Robots 2074 | 8 55 4 126 99 8 . . 71 270 117 13 . 115 103 16 32 37 96 59 57 97 4 78 263 309 37 Core Hits 1036 | 3 16 3 52 85 9 . . 19 115 55 9 . 51 56 10 8 13 49 29 26 49 2 34 140 161 42 Critical Kills 68 | . . . . . . . . 4 13 7 . . . 1 1 . . 3 1 . 6 . 4 26 2 . Critical Parts Destroyed 83 | . . . . . . . . . 15 7 . . 1 1 . . . . 5 3 9 . 3 29 10 . Critical Strikes 195 | . 1 . . . . . . 6 28 23 1 . 10 3 2 . 2 4 9 6 15 . 7 59 17 2 Burn 16 | . 1 . . . . . . . . 9 1 . 2 . . . 1 1 1 . . . . . . . Meltdown 1 | . . . . . . . . . . . . . . . . . . 1 . . . . . . . . Destroy 162 | . . . . . . . . 6 28 14 . . 2 2 1 . . 2 8 6 15 . 7 59 12 . Blast 6 | . . . . . . . . . . . . . 6 . . . . . . . . . . . . . Corrupt 6 | . . . . . . . . . . . . . . . . . 1 . . . . . . . 5 . Sever 2 | . . . . . . . . . . . . . . 1 . . . . . . . . . . . 1 Impale 2 | . . . . . . . . . . . . . . . 1 . . . . . . . . . . 1 Melee Attacks 129 | . . . 2 7 . . . 1 . 3 1 . 2 11 4 6 2 16 . 3 1 . . 10 14 46 Impact 1 | . . . . . . . . . . . . . . . . . . . . . . . . . . 1 Slashing 42 | . . . 1 7 . . . 1 . 3 1 . 2 11 . . . . . . . . . . . 16 Piercing 76 | . . . . . . . . . . . . . . . 4 6 2 12 . . . . . 9 14 29 Sneak Attacks 32 | . . . . . . . . 1 . . 1 . . 6 3 . 1 4 . 3 1 . . 1 3 8 Combat Hostiles 3 | . . . . . . . . . . . 1 . . . . . 1 . . . . . . . . 1 Follow-up Attacks 1 | . . . . . . . . . . . . . . . . . . . . . . . . . . 1 Damage Inflicted 55621 | 101 692 69 2071 2789 198 . . 940 4490 2558 506 . 2865 2814 891 1131 864 2659 1800 1657 3193 150 2234 6703 10012 4234 Guns 41872 | 95 690 59 2016 1697 143 . . 909 4274 1751 162 . 977 1726 269 589 782 2471 1800 1657 3115 98 2234 6653 7642 63 Cannons 3987 | . . . . . . . . . 163 547 67 . 1888 685 . . . 99 . . . . . . 194 344 Explosions 6021 | . . . 37 1092 55 . . . . 260 217 . . . 381 . . . . . 78 . . . 1935 1966 Melee 3414 | . . . . . . . . 31 . . 60 . . 403 241 542 82 . . . . . . . 241 1814 Ramming 327 | 6 2 10 18 . . . . . 53 . . . . . . . . 89 . . . 52 . 50 . 47 Kinetic 37972 | 46 439 59 1786 . . . . 909 4256 961 . . 2205 2138 269 589 678 2232 1753 1657 3115 98 2234 6653 5488 407 Thermal 5001 | 49 251 . 37 910 55 . . . 181 1337 229 . 660 224 . . 99 338 47 . . . . . 584 . Explosive 4722 | . . . . 182 . . . . . 260 217 . . . 381 . . . . . . . . . 1716 1966 Electromagnetic 4185 | . . . 230 1697 143 . . . . . . . . 49 . . 5 . . . 78 . . . 1983 . Impact . | . . . . . . . . . . . . . . . . . . . . . . . . . . . Slashing 1684 | . . . . . . . . 31 . . 60 . . 403 . . . . . . . . . . . 1190 Piercing 1730 | . . . . . . . . . . . . . . . 241 542 82 . . . . . . . 241 624 Highest Corruption 86 | . . . . 1 1 . . . 4 6 6 6 6 8 . . 4 4 4 4 1 . 3 12 86 33 Average Corruption 7 | . . . . 1 1 . . . 2 4 6 6 6 5 . . 3 4 4 3 1 . 1 5 25 14 Corruption Purged 12 | . . . . . . . . . . . . . . 8 . . . . . 4 . . . . . . Corruption Blocked . | . . . . . . . . . . . . . . . . . . . . . . . . . . . Effects 446 | . . . . . 4 . . . 24 69 20 4 42 22 . . 9 39 15 7 1 . 5 47 111 27 Message Errors 106 | . . . . . . . . . 5 20 5 . 11 4 . . 1 11 5 2 . . 1 14 22 5 Matter Fused 96 | . . . . . 2 . . . 8 10 6 2 9 6 . . 5 9 4 1 . . . 5 23 6 Heat Flow Errors 56 | . . . . . . . . . 4 9 3 1 5 2 . . 1 4 2 1 . . 2 9 10 3 Energy Discharges 46 | . . . . . . . . . 1 7 2 1 6 2 . . 2 4 2 . . . 1 4 10 4 Parts Rejected 2 | . . . . . . . . . . . . . . . . . . . . . . . . . 1 1 Parts Fused 5 | . . . . . . . . . . 1 1 . . . . . . 1 . . 1 . . . 1 . Data Loss (minor) 48 | . . . . . . . . . 3 11 1 . 4 4 . . . 5 . 2 . . 1 3 10 4 Data Loss (major) 13 | . . . . . . . . . 2 3 . . 3 1 . . . . . . . . . 3 1 . Misfires 19 | . . . . . 2 . . . 1 5 1 . 3 . . . . 2 . . . . . 2 3 . Alerts 11 | . . . . . . . . . . 3 . . 1 2 . . . 1 2 . . . . . 2 . Misdirections 7 | . . . . . . . . . . . . . . . . . . . . . . . . . 3 4 Weapon Failures 37 | . . . . . . . . . . . 1 . . 1 . . . 2 . 1 . . . 7 25 . Overload Shots 3 | . . . . . . . . . . . . . . . . . . 1 1 . . . . 1 . . Overflow Damage 1127 | . . . . 35 . . . . 23 14 . . 33 74 200 75 . 41 . . 19 . . . 72 541 Projectiles 82 | . . . . . . . . . 3 14 . . 33 30 . . . 2 . . . . . . . . Explosions 374 | . . . . 35 . . . . 20 . . . . . 71 . . . . . 19 . . . 72 157 Melee 671 | . . . . . . . . . . . . . . 44 129 75 . 39 . . . . . . . 384 Knockbacks 21 | . . . . . . . . . 1 . . . 9 5 . . . . . . . 2 . . . 4 Impact 4 | . . . . . . . . . 1 . . . . . . . . . . . . 2 . . . 1 Kinetic 15 | . . . . . . . . . . . . . 8 4 . . . . . . . . . . . 3 Secondary 2 | . . . . . . . . . . . . . 1 1 . . . . . . . . . . . . Self-Inflicted Damage 594 | . . . . 154 11 . . . 121 16 . . . . . . . . . . 71 . . . 173 48 Shots 16 | . . . . 4 1 . . . 2 1 . . . . . . . . . . 1 . . . 6 1 Rammed 16 | 1 1 1 1 . . . . . 2 . . . . . . . . 2 . . . 3 . 3 . 2 Targets Rammed 18 | 1 1 1 1 . . . . . 3 . . . . . . . . 2 . . . 3 . 4 . 2 Kicked . | . . . . . . . . . . . . . . . . . . . . . . . . . . . Crushed 2 | . . . . . . . . . 1 . . . . . . . . . . . . . . 1 . . Highest Temperature 440 | 18 144 1 110 97 26 . . . 246 229 314 119 209 187 93 24 329 314 247 138 159 152 176 363 440 264 Average Temperature 77 | 9 50 1 34 33 14 . . . 54 79 135 68 54 53 51 10 120 108 83 48 42 82 56 111 111 71 Received Heat Transfer 3664 | . 90 12 219 204 . . . . 494 428 . . 711 189 . . 8 103 . . 33 . 27 189 570 387 Effects 5 | . . . . . . . . . . . . . . . . . . . . . . . . . 5 . Shutdowns 2 | . . . . . . . . . . . . . . . . . . . . . . . . . 2 . Energy Bleed 2 | . . . . . . . . . . . . . . . . . . . . . . . . . 2 . Short Circuit 1 | . . . . . . . . . . . . . . . . . . . . . . . . . 1 . Siege Activations 55 | . . . . . . . . . 15 1 . . 2 5 . . . 1 1 . 2 . 3 12 13 . Total Turns 922 | . . . . . . . . . 200 10 . . 49 105 . . . 29 11 . 66 . 44 159 249 . Longest Duration 52 | . . . . . . . . . 29 10 . . 28 32 . . . 29 11 . 45 . 20 33 52 . Martial Activations . | . . . . . . . . . . . . . . . . . . . . . . . . . . . Shielding Activations . | . . . . . . . . . . . . . . . . . . . . . . . . . . . Robots Disrupted . | . . . . . . . . . . . . . . . . . . . . . . . . . . . Combat Hostiles . | . . . . . . . . . . . . . . . . . . . . . . . . . . . Robots Corrupted 8 | . . . . 1 . . . . . . . . . . . . . 1 . . . . . . 6 . Combat Hostiles 6 | . . . . 1 . . . . . . . . . . . . . . . . . . . . 5 . Parts Fried 29 | . . . 1 9 . . . . . . . . . . . . . 3 . . . . . . 16 . Impact Corruptions 2 | . . . . . . . . . . . . . . . . . . 2 . . . . . . . . Robots Melted 6 | . . . . . . . . . . 4 . . 1 . . . . 1 . . . . . . . . Combat Hostiles 5 | . . . . . . . . . . 3 . . 1 . . . . 1 . . . . . . . . Parts Melted 42 | . 2 . . . . . . . 6 17 2 . 10 1 . . 1 2 . . . . . . 1 . Heat Transferred 10668 | 148 814 . . 1150 100 . . . 300 3900 650 . 1700 300 . . 222 594 148 . . . . . 642 . Parts Sabotaged 4 | . . . . . . . . . . . . . . . . . . . . . . . . . 4 . Parts Stolen . | . . . . . . . . . . . . . . . . . . . . . . . . . . . Parts Stripped . | . . . . . . . . . . . . . . . . . . . . . . . . . . . Power Chain Reactions 13 | . . . 1 10 1 . . . . . . . . . . . . . . . . . . . 1 . Alert | -11 -10 -10 -9 -9 -9 -9 -6 -6 -6 -6 -6 -6 -5 -5 -4 -4 -4 -4 -4 -4 -4 -3 -3 -2 -2 -1 ------- Run | Yrd Mat Min Mat Sto Rec Scr Fac Was Fac Low Low Dat Pro Fac Fac Was Fac Ext Cet Arc Hub Res DSF Res Tes Acc Maximum Alert Level 4 | . . . 1 3 1 . . . 3 . . . . 1 1 . . 2 2 1 2 1 2 3 4 4 Low Security (%) 50 | 100 100 100 99 8 16 . 100 100 35 . . . . 49 39 100 100 58 . 84 35 . . . . . Level 1 16 | . . . . 5 83 . . . 14 . . . . 50 60 . . 11 81 15 18 100 63 5 32 . Level 2 16 | . . . . 41 . . . . 36 . . . . . . . . 30 18 . 45 . 36 19 21 48 Level 3 14 | . . . . 43 . . . . 14 . . . . . . . . . . . . . . 74 34 34 Level 4 1 | . . . . . . . . . . . . . . . . . . . . . . . . . 11 17 Level 5 . | . . . . . . . . . . . . . . . . . . . . . . . . . . . High Security . | . . . . . . . . . . . . . . . . . . . . . . . . . . . Max Security . | . . . . . . . . . . . . . . . . . . . . . . . . . . . Sterilizations 1 | . . . . . . . . . . . . . . . . . . . . . . . 1 . . . Peak Influence 1231 | 5 85 9 206 888 283 . . . 858 . . . . 351 260 60 177 561 460 287 698 357 550 991 1119 1231 Initial 665 | . . 9 . 39 276 . . . . . . . . 7 142 60 . 46 301 99 . 357 228 309 537 665 Average 309 | 1 10 . 109 615 227 . . . 386 . . . . 158 197 2 75 240 348 78 303 332 397 750 688 859 Influence Increases 13702 | 10 208 5 703 1491 121 . . . 1503 595 125 . 480 634 222 . 339 1281 369 298 938 17 322 1302 1497 1242 Destroy 0b10 Robot/C 7240 | . 80 . 400 720 40 . . . 820 500 100 . 420 400 160 . 180 500 160 80 340 . 260 860 960 260 Destroy 0b10 Robot/NC 660 | 10 5 5 70 85 10 . . . 40 . 5 . 5 70 5 . 15 40 10 20 35 5 5 70 80 70 Destroy Leader 1316 | . 22 . 118 174 . . . . 206 20 20 . 40 76 22 . 50 44 . . 106 . 40 188 136 54 Allied During Kill 1083 | . . . . 151 . . . . 33 . . . . . . . 41 457 170 87 110 . . 34 . . Successful Hack 205 | . 40 . 31 48 7 . . . . . . . . 13 . . . . . . 42 12 . 12 . . Select Force Hacks 120 | . 60 . . . 60 . . . . . . . . . . . . . . . . . . . . . Disable Machine 645 | . . . . 90 . . . . 120 . . . . 15 15 . 15 30 15 75 90 . 15 15 105 45 Anti-Garrison Action 350 | . . . . 150 . . . . 200 . . . . . . . . . . . . . . . . . Destroy Structure 1318 | . 1 . 9 73 4 . . . 54 . . . . 30 20 . 38 210 14 36 200 . 2 123 216 288 Partial Spotted 45 | . . . . . . . . . 15 . . . . . . . . . . . . . . . . 30 Lose Combat Pursuer 720 | . . . 75 . . . . . 15 75 . . 15 30 . . . . . . 15 . . . . 495 Influence Decreases 12617 | 10 182 31 610 874 656 175 . . 664 1085 369 105 467 355 340 174 242 839 660 546 258 393 76 897 1342 1267 Entered New Map 3374 | . . 17 . 54 434 175 . . . 311 67 105 . 6 150 114 . 51 238 149 . 323 76 241 418 445 Time Decay 7301 | 10 173 14 610 530 222 . . . 544 694 302 . 407 289 190 60 242 555 342 337 188 70 . 556 574 392 Lost Part 879 | . 9 . . 10 . . . . 40 80 . . 60 60 . . . 20 . . 30 . . 90 200 280 Lost Ally 480 | . . . . 130 . . . . 80 . . . . . . . . 80 80 60 40 . . 10 . . Purge Threat 583 | . . . . 150 . . . . . . . . . . . . . 133 . . . . . . 150 150 Squads Dispatched 101 | . 2 . 2 6 . . 1 . 18 . . . 1 6 2 . 5 1 . . 5 1 2 20 17 12 Investigation 28 | . 2 . . 1 . . . . 6 . . . 1 3 1 . 3 1 . . 2 1 . 4 2 1 Extermination 19 | . . . . . . . . . 2 . . . . 3 . . 2 . . . 1 . . 4 4 3 Reinforcement 29 | . . . 2 1 . . 1 . 8 . . . . . 1 . . . . . 2 . 2 6 4 2 Assault 11 | . . . . 3 . . . . 1 . . . . . . . . . . . . . . 3 1 3 Garrison 14 | . . . . 1 . . . . 1 . . . . . . . . . . . . . . 3 6 3 Intercept . | . . . . . . . . . . . . . . . . . . . . . . . . . . . Searches Triggered . | . . . . . . . . . . . . . . . . . . . . . . . . . . . Data Miner Redirects 11 | . . . . . . . . . . . . . . 2 1 . 2 . . . . . . 3 . 3 Construction Impeded 4 | . . . . . . . . . 1 . . . . . . . . . . . . . . 2 . 1 Haulers Reinforced 7 | . . . . . . . . . 2 . . . . . . . . . . . . . . 2 2 1 Active Scanning Responses . | . . . . . . . . . . . . . . . . . . . . . . . . . . . Cargo Convoy Interrupts . | . . . . . . . . . . . . . . . . . . . . . . . . . . . Stealth | -11 -10 -10 -9 -9 -9 -9 -6 -6 -6 -6 -6 -6 -5 -5 -4 -4 -4 -4 -4 -4 -4 -3 -3 -2 -2 -1 --------- Run | Yrd Mat Min Mat Sto Rec Scr Fac Was Fac Low Low Dat Pro Fac Fac Was Fac Ext Cet Arc Hub Res DSF Res Tes Acc Distress Signals 24 | . 2 . 2 3 . . . . . . . . . 1 . . 1 2 2 . 4 . . 2 2 3 Communications Jammed . | . . . . . . . . . . . . . . . . . . . . . . . . . . . Distress Signals . | . . . . . . . . . . . . . . . . . . . . . . . . . . . Times Spotted 499 | . 16 4 41 44 . . 1 5 48 27 4 . 22 26 13 . 5 21 9 10 19 . 13 59 56 56 Peak Tracking Total 12 | . 7 2 6 7 . . 1 4 4 7 3 . 10 5 5 . 3 5 5 1 6 . 5 7 8 12 Tactical Retreats 21 | . . . 2 . . . . . 1 1 . . 1 2 . . . . . . 1 . . . . 13 Traps | -11 -10 -10 -9 -9 -9 -9 -6 -6 -6 -6 -6 -6 -5 -5 -4 -4 -4 -4 -4 -4 -4 -3 -3 -2 -2 -1 ------- Run | Yrd Mat Min Mat Sto Rec Scr Fac Was Fac Low Low Dat Pro Fac Fac Was Fac Ext Cet Arc Hub Res DSF Res Tes Acc Traps Triggered 18 | . . . . . . . 1 . 2 . . . . 2 2 . 1 . . . 4 . . 1 2 3 Indirectly . | . . . . . . . . . . . . . . . . . . . . . . . . . . . Trap Hack Attempts 43 | . . . 34 . . . . . . . . . . . . . . . . . 9 . . . . . Triggered . | . . . . . . . . . . . . . . . . . . . . . . . . . . . Disarmed . | . . . . . . . . . . . . . . . . . . . . . . . . . . . Reprogrammed 9 | . . . 6 . . . . . . . . . . . . . . . . . 3 . . . . . Reused . | . . . . . . . . . . . . . . . . . . . . . . . . . . . Traps Extracted 4 | . . . 4 . . . . . . . . . . . . . . . . . . . . . . . Installed . | . . . . . . . . . . . . . . . . . . . . . . . . . . . Triggered . | . . . . . . . . . . . . . . . . . . . . . . . . . . . Most Traps Carried 4 | . . 4 4 4 4 4 4 4 4 4 4 4 4 4 4 4 4 4 4 4 4 4 4 4 4 4 Machines | -11 -10 -10 -9 -9 -9 -9 -6 -6 -6 -6 -6 -6 -5 -5 -4 -4 -4 -4 -4 -4 -4 -3 -3 -2 -2 -1 ---------- Run | Yrd Mat Min Mat Sto Rec Scr Fac Was Fac Low Low Dat Pro Fac Fac Was Fac Ext Cet Arc Hub Res DSF Res Tes Acc Machines Disabled 47 | . . . . 7 . . . . 8 1 . . . 1 1 . 1 2 3 5 6 . 1 1 7 3 Max in Single Turn 3 | . . . . 2 . . . . 3 1 . . . 1 1 . . 1 1 2 1 . 1 1 2 1 Garrison Access 2 | . . . . 1 . . . . 1 . . . . . . . . . . . . . . . . . Network Hub 1 | . . . . . . . . . . . . . . . . . . . . . 1 . . . . . Machines Repaired . | . . . . . . . . . . . . . . . . . . . . . . . . . . . Machines Dismantled . | . . . . . . . . . . . . . . . . . . . . . . . . . . . Machines Sabotaged . | . . . . . . . . . . . . . . . . . . . . . . . . . . . Overloaded Fab Kills . | . . . . . . . . . . . . . . . . . . . . . . . . . . . Hacking | -11 -10 -10 -9 -9 -9 -9 -6 -6 -6 -6 -6 -6 -5 -5 -4 -4 -4 -4 -4 -4 -4 -3 -3 -2 -2 -1 --------- Run | Yrd Mat Min Mat Sto Rec Scr Fac Was Fac Low Low Dat Pro Fac Fac Was Fac Ext Cet Arc Hub Res DSF Res Tes Acc Machines Accessed 99 | . 10 1 9 14 3 4 1 . 7 2 1 4 1 6 3 . 3 7 . . 3 2 . 11 3 4 Terminals 55 | . 7 1 9 12 1 . 1 . 1 1 . . 1 2 1 . . 6 . . 3 1 . 3 1 4 Fabricators 2 | . . . . . . . . . 1 . . . . . . . . . . . . . . 1 . . Repair Stations 5 | . 1 . . 2 . . . . . . . . . . . . . . . . . . . 2 . . Recycling Units 18 | . 2 . . . 2 . . . 4 . . . . 3 1 . 3 1 . . . . . 2 . . Scanalyzers 8 | . . . . . . . . . . . . . . 1 1 . . . . . . 1 . 3 2 . Garrison Access 1 | . . . . . . . . . 1 . . . . . . . . . . . . . . . . . Total Hacks 287 | . 28 3 24 32 4 31 1 . 12 4 1 34 3 10 8 . 6 15 . . 9 9 . 30 15 8 Successful 163 | . 16 2 17 20 3 31 . . 5 4 1 34 3 7 2 . 3 4 . . 3 2 . 4 1 1 Failed 123 | . 12 1 7 12 1 . 1 . 7 . . . . 2 6 . 3 11 . . 6 7 . 26 14 7 Catastrophic 31 | . 1 . 3 3 . . . . 1 . . . . 2 2 . . 1 . . 3 . . 10 1 4 Database Lockouts 1 | . . . . . . . . . . . . . . 1 . . . . . . . . . . . . Manual 107 | . 15 1 14 19 4 . . . 8 . . . . 4 2 . 6 6 1 . 4 . . 15 8 . Terminals 133 | . 19 3 24 25 2 . 1 . 1 3 . . 3 2 1 . . 13 . . 9 4 . 6 9 8 Fabricators 4 | . . . . . . . . . 2 . . . . . . . . . . . . . . 2 . . Repair Stations 17 | . 2 . . 7 . . . . . . . . . . . . . . . . . . . 8 . . Recycling Units 36 | . 7 . . . 2 . . . 8 . . . . 4 2 . 6 2 . . . . . 5 . . Scanalyzers 29 | . . . . . . . . . . . . . . 4 5 . . . . . . 5 . 9 6 . Garrison Access 1 | . . . . . . . . . 1 . . . . . . . . . . . . . . . . . Terminal Hacks 104 | . 4 2 8 5 1 31 . . . 4 1 34 3 2 . . . 4 . . 2 1 . . 1 1 Record 48 | . . . . . . 31 . . . 3 . 11 3 . . . . . . . . . . . . . Part Schematic 14 | . . . . . 1 . . . . . . 13 . . . . . . . . . . . . . . Robot Schematic 8 | . . . 1 . . . . . . . . 7 . . . . . . . . . . . . . . Robot Analysis 3 | . . 1 1 1 . . . . . . . . . . . . . . . . . . . . . . Prototype ID Bank 6 | . 2 . 1 . . . . . . . . 3 . . . . . . . . . . . . . . Open Door 5 | . . . . 3 . . . . . 1 1 . . . . . . . . . . . . . . . Open DSF 2 | . . . . . . . . . . . . . . 1 . . . . . . . 1 . . . . Level Access Points 1 | . . . . . . . . . . . . . . . . . . . . . 1 . . . . . Terminal Index 2 | . 1 . . . . . . . . . . . . . . . . 1 . . . . . . . . Alert Level 1 | . . . . . . . . . . . . . . . . . . 1 . . . . . . . . Unreport Threat 4 | . . . . 1 . . . . . . . . . . . . . 1 . . . . . . 1 1 Locate Traps 4 | . 1 . 2 . . . . . . . . . . . . . . . . . 1 . . . . . Hauler Manifests 1 | . . . 1 . . . . . . . . . . . . . . . . . . . . . . . Registered Prototypes 1 | . . . 1 . . . . . . . . . . . . . . . . . . . . . . . Zone Layout 4 | . . 1 1 . . . . . . . . . . 1 . . . 1 . . . . . . . . Fabricator Hacks 1 | . . . . . . . . . 1 . . . . . . . . . . . . . . . . . Network Status 1 | . . . . . . . . . 1 . . . . . . . . . . . . . . . . . Repair Station Hacks 8 | . 2 . . 6 . . . . . . . . . . . . . . . . . . . . . . Scan Component 4 | . 1 . . 3 . . . . . . . . . . . . . . . . . . . . . . Repair 4 | . 1 . . 3 . . . . . . . . . . . . . . . . . . . . . . Recycling Unit Hacks 1 | . . . . . . . . . . . . . . . . . . . . . . . . 1 . . Retrieve Components 1 | . . . . . . . . . . . . . . . . . . . . . . . . 1 . . Scanalyzer 6 | . . . . . . . . . . . . . . 3 1 . . . . . . 1 . 1 . . Retrieve Study 6 | . . . . . . . . . . . . . . 3 1 . . . . . . 1 . 1 . . Garrison Access Hacks . | . . . . . . . . . . . . . . . . . . . . . . . . . . . Unauthorized Hacks 43 | . 10 . 9 9 2 . . . 4 . . . . 2 1 . 3 . . . 1 . . 2 . . Terminals 27 | . 8 . 9 9 . . . . . . . . . . . . . . . . 1 . . . . . Track 1 | . . . 1 . . . . . . . . . . . . . . . . . . . . . . . Assimilate 1 | . . . . 1 . . . . . . . . . . . . . . . . . . . . . . Botnet 6 | . 1 . 2 2 . . . . . . . . . . . . . . . . 1 . . . . . Operators 3 | . 1 . 1 1 . . . . . . . . . . . . . . . . . . . . . . Skim 16 | . 6 . 5 5 . . . . . . . . . . . . . . . . . . . . . . Fabricators . | . . . . . . . . . . . . . . . . . . . . . . . . . . . Repair Stations 1 | . . . . . . . . . . . . . . . . . . . . . . . . 1 . . Patch 1 | . . . . . . . . . . . . . . . . . . . . . . . . 1 . . Recycling Units 14 | . 2 . . . 2 . . . 3 . . . . 2 1 . 3 . . . . . . 1 . . Tunnel 4 | . 2 . . . 2 . . . . . . . . . . . . . . . . . . . . . Fedlink 6 | . . . . . . . . . 2 . . . . 1 1 . 2 . . . . . . . . . Scrapoids 2 | . . . . . . . . . 1 . . . . 1 . . . . . . . . . . . . Scraphulk 2 | . . . . . . . . . . . . . . . . . 1 . . . . . . 1 . . Scanalyzers . | . . . . . . . . . . . . . . . . . . . . . . . . . . . Garrison Access 1 | . . . . . . . . . 1 . . . . . . . . . . . . . . . . . Jam 1 | . . . . . . . . . 1 . . . . . . . . . . . . . . . . . Data Cores Recovered 2 | . . . . 1 . . . . . . . . . . . . . 1 . . . . . . . . Used . | . . . . . . . . . . . . . . . . . . . . . . . . . . . Hacking Detections 71 | . 9 1 8 13 . . 1 . 4 1 . . 1 4 2 . 1 6 . . 3 1 . 9 3 4 Full Trace Events 13 | . . . . 1 . . . . 1 1 . . 1 1 . . . 1 . . 2 1 . 2 1 1 Feedback Events 3 | . . . . 1 . . . . . . . . . 1 . . . . . . . . . 1 . . Corruption 2 | . . . . 1 . . . . . . . . . . . . . . . . . . . 1 . . Hackware Fried 1 | . . . . . . . . . . . . . . 1 . . . . . . . . . . . . Feedback Blocked . | . . . . . . . . . . . . . . . . . . . . . . . . . . . Robot Schematics Acquired 8 | . . . 1 . . . . . . . . 7 . . . . . . . . . . . . . . Robots Built . | . . . . . . . . . . . . . . . . . . . . . . . . . . . Authchips . | . . . . . . . . . . . . . . . . . . . . . . . . . . . Time . | . . . . . . . . . . . . . . . . . . . . . . . . . . . Total Robot Build Rating . | . . . . . . . . . . . . . . . . . . . . . . . . . . . Part Schematics Acquired 19 | . . . . . 1 . . . . . . 13 . . . . . . . . . . . . 5 . Parts Built . | . . . . . . . . . . . . . . . . . . . . . . . . . . . Authchips . | . . . . . . . . . . . . . . . . . . . . . . . . . . . Time . | . . . . . . . . . . . . . . . . . . . . . . . . . . . Total Part Build Rating . | . . . . . . . . . . . . . . . . . . . . . . . . . . . Part Studies Acquired 6 | . . . . . . . . . . . . . . 3 1 . . . . . . 1 . 1 . . Parts Repaired 4 | . 1 . . 3 . . . . . . . . . . . . . . . . . . . . . . Time 141 | . 26 . . 115 . . . . . . . . . . . . . . . . . . . . . . Parts Recycled . | . . . . . . . . . . . . . . . . . . . . . . . . . . . Recycled Matter . | . . . . . . . . . . . . . . . . . . . . . . . . . . . Retrieved Matter . | . . . . . . . . . . . . . . . . . . . . . . . . . . . Retrieved Components 3 | . . . . . . . . . . . . . . . . . . . . . . . . 3 . . Parts Scanalyzed . | . . . . . . . . . . . . . . . . . . . . . . . . . . . Part Schematics Acquired . | . . . . . . . . . . . . . . . . . . . . . . . . . . . Parts Damaged . | . . . . . . . . . . . . . . . . . . . . . . . . . . . Bothacking | -11 -10 -10 -9 -9 -9 -9 -6 -6 -6 -6 -6 -6 -5 -5 -4 -4 -4 -4 -4 -4 -4 -3 -3 -2 -2 -1 ------------ Run | Yrd Mat Min Mat Sto Rec Scr Fac Was Fac Low Low Dat Pro Fac Fac Was Fac Ext Cet Arc Hub Res DSF Res Tes Acc Used RIF Installer . | . . . . . . . . . . . . . . . . . . . . . . . . . . . Robots Hacked 13 | . . . . . . . . 2 1 . . . . 1 1 . . 4 . 2 1 . . 1 . . Non-combat 6 | . . . . . . . . . 1 . . . . 1 1 . . . . 2 1 . . . . . Combat 5 | . . . . . . . . . . . . . . . . . . 4 . . . . . 1 . . Robot Hacks Applied 12 | . . . . . . . . . 1 . . . . 1 1 . . 4 . 3 1 . . 1 . . parse_system 6 | . . . . . . . . . . . . . . . . . . 4 . . 1 . . 1 . . find_chute 2 | . . . . . . . . . . . . . . 1 1 . . . . . . . . . . . find_recycling 1 | . . . . . . . . . 1 . . . . . . . . . . . . . . . . . check_alert 3 | . . . . . . . . . . . . . . . . . . . . 3 . . . . . . Manual 2 | . . . . . . . . 2 . . . . . . . . . . . . . . . . . . Relay Couplers Released 2 | . . . . 2 . . . . . . . . . . . . . . . . . . . . . . Machine Destruction 2 | . . . . 2 . . . . . . . . . . . . . . . . . . . . . . Fabnet Peak Effective % . | . . . . . . . . . . . . . . . . . . . . . . . . . . . Robots Rewired 12 | . . . . . . . . 2 . . . . . . . . . 10 . . . . . . . . Allies Hacked . | . . . . . . . . . . . . . . . . . . . . . . . . . . . Hacks Repelled . | . . . . . . . . . . . . . . . . . . . . . . . . . . . Allies | -11 -10 -10 -9 -9 -9 -9 -6 -6 -6 -6 -6 -6 -5 -5 -4 -4 -4 -4 -4 -4 -4 -3 -3 -2 -2 -1 -------- Run | Yrd Mat Min Mat Sto Rec Scr Fac Was Fac Low Low Dat Pro Fac Fac Was Fac Ext Cet Arc Hub Res DSF Res Tes Acc Total Allies 48 | . . . . 11 . . . 2 5 . . . . . . 1 1 22 5 . . . . 1 . . Largest Group 22 | . . . . 10 . . . 2 5 . . . . . . 1 2 22 21 9 4 . . 1 . . Highest-Rated Group 1307 | . . . . 88 . . . 282 140 . . . . . . 99 222 1146 1307 578 275 . . 139 . . Highest-Rated Ally 159 | . . . . 16 . . . 141 28 . . . . . . 99 123 159 159 159 96 . . 139 . . Initial UFD Resources 63 | . . . . . . . 23 23 23 34 34 34 37 37 46 56 56 57 57 57 57 60 60 63 58 62 Total Orders 13 | . . . . . . . . . . . . . . . . . . 3 . 2 . . . 7 . 1 STAY 3 | . . . . . . . . . . . . . . . . . . 2 . 1 . . . . . . FOLLOW 2 | . . . . . . . . . . . . . . . . . . 1 . 1 . . . . . . EXPLORE 7 | . . . . . . . . . . . . . . . . . . . . . . . . 6 . 1 RETURN 1 | . . . . . . . . . . . . . . . . . . . . . . . . 1 . . Ally Attacks 340 | . . . . 85 . . . 10 44 . . . . . . . 10 90 26 24 22 . . 29 . . Total Damage 8582 | . . . . 700 . . . 566 801 . . . . . . . 301 2955 777 700 697 . . 1085 . . Kills 56 | . . . . 9 . . . 1 6 . . . . . . . 6 17 3 3 6 . . 5 . . Allies Corrupted 1 | . . . . . . . . . . . . . . . . . . . . . . . . 1 . . Allies Melted 1 | . . . . . . . . . . . . . . . . . . 1 . . . . . . . . Intel | -11 -10 -10 -9 -9 -9 -9 -6 -6 -6 -6 -6 -6 -5 -5 -4 -4 -4 -4 -4 -4 -4 -3 -3 -2 -2 -1 ------- Run | Yrd Mat Min Mat Sto Rec Scr Fac Was Fac Low Low Dat Pro Fac Fac Was Fac Ext Cet Arc Hub Res DSF Res Tes Acc Active Infowar (turns) 5946 | 16 1506 379 583 . . . . . 189 1632 . . 211 200 295 . 121 2 . . 123 . . 285 160 244 Sensors 104 | . . . . . . . . . . . . . . . . . . . . . . . . . 100 4 A.S.S. 5 | . . . . . . . . . 5 . . . . . . . . . . . . . . . . . IFF 22 | . . . . . . . . . . . . . . . . . . . . . . . . . . 22 Terrain 3035 | . . . . . . . . . 184 1632 . . 211 200 . . 121 2 . . 123 . . 285 59 218 Structural 295 | . . . . . . . . . . . . . . . 295 . . . . . . . . . . . Seismic 2300 | 16 1506 379 399 . . . . . . . . . . . . . . . . . . . . . . . T.N.C. 184 | . . . 184 . . . . . . . . . . . . . . . . . . . . . . . ECM 1 | . . . . . . . . . . . . . . . . . . . . . . . . . 1 . Robot Analysis Total 3 | . . 1 1 1 . . . . . . . . . . . . . . . . . . . . . . Derelict Logs Recovered 6 | . . 1 . . . . . . . 2 1 . 2 . . . . . . . . . . . . . Drone Launches 7 | . . . . . . . . . . . . . . . . . . . . . . . . 6 . 1 Drone Recoveries 6 | . . . . . . . . . . . . . . . . . . . . . . . . 5 . 1 Exploration | -11 -10 -10 -9 -9 -9 -9 -6 -6 -6 -6 -6 -6 -5 -5 -4 -4 -4 -4 -4 -4 -4 -3 -3 -2 -2 -1 ------------- Run | Yrd Mat Min Mat Sto Rec Scr Fac Was Fac Low Low Dat Pro Fac Fac Was Fac Ext Cet Arc Hub Res DSF Res Tes Acc Turns Passed 29612 | 106 1506 379 2194 1495 462 2680 102 594 2036 2877 667 153 1617 1006 383 1511 670 1848 775 1408 403 153 288 1626 1746 927 Spaces Moved 13520 | 49 618 211 975 720 278 1423 64 306 782 1072 369 92 834 447 204 939 344 953 358 154 149 61 112 658 657 691 Core 170 | 2 . . . . . . . . . . . . . . . . . . . 37 . . . . . 131 Treads 9189 | 47 618 211 975 720 278 419 . 129 782 1022 1 . 85 1 1 291 344 953 358 117 149 61 112 658 649 208 Legs 74 | . . . . . . . . . . . . . . . . . . . . . . . . . 8 66 Wheels 3801 | . . . . . . 1004 64 177 . 50 368 92 749 446 203 648 . . . . . . . . . . Hover 172 | . . . . . . . . . . . . . . . . . . . . . . . . . . 172 Flight 114 | . . . . . . . . . . . . . . . . . . . . . . . . . . 114 Fastest Speed 37 | 50 160 160 160 160 160 100 145 145 160 175 160 160 140 112 145 115 160 162 162 166 166 166 166 160 150 37 Average Speed 174 | 155 160 160 160 160 160 185 145 158 187 246 167 160 162 139 158 143 165 164 167 822 167 195 166 160 166 90 Slowest Speed 2900 | 160 160 160 160 160 160 320 145 160 246 250 345 160 245 275 200 226 235 173 255 2900 170 255 166 165 610 350 Overloaded Moves . | . . . . . . . . . . . . . . . . . . . . . . . . . . . Propulsion Burnouts . | . . . . . . . . . . . . . . . . . . . . . . . . . . . Robots Hopped 1 | . . . . . . . . . . . . . . . . . . . . . . . . . . 1 Potential Cave-ins 10 | . . . . . . . . . . . . . . . . . . . . . . . . 7 . 3 Cave-ins Triggered 2 | . . . . . . . . . . . . . . . . . . . . . . . . . . 2 Exploration Rate (%) 53 | 3 87 48 60 90 60 89 2 86 19 95 58 69 74 13 8 96 12 97 82 79 21 1 78 28 58 18 Regions Visited 26 Branch Regions 13 Pre-discovered Areas 13 | . 3 . 2 2 2 1 . . 1 . . 1 1 . . . . . . . . . . . . . Known Exits Taken 9 | . 1 1 1 1 . . . . 1 . . . 1 1 . . . . . . 1 1 . . . . Unknown Exits Taken 12 | 1 . . . . 1 1 . . . 1 1 1 . . . . 1 1 1 1 . . . 1 1 . Scrap Searched 15 | . . . . . . 5 . . . 4 2 . 4 . . . . . . . . . . . . . Spaces Dug 107 | . . . . 22 . . . . . 4 . . 7 3 1 . 1 11 . 3 . . . 11 8 36 Terrain Destroyed 792 | . . . 2 74 4 . . . 63 42 18 . 32 12 13 . 4 17 1 25 199 . 3 47 92 144 Melee 44 | . . . . 1 . . . . . 3 . . 2 2 1 . 1 11 . . . . . 8 7 8 Projectile 207 | . . . . . . . . . . 10 3 . 30 9 1 . 3 6 1 25 31 . 2 31 36 19 AOE 526 | . . . 2 73 4 . . . 63 25 15 . . . 11 . . . . . 167 . . . 49 117 Terrain Rammed . | . . . . . . . . . . . . . . . . . . . . . . . . . . . Walls Destroyed . | . . . . . . . . . . . . . . . . . . . . . . . . . . . Machines Disabled . | . . . . . . . . . . . . . . . . . . . . . . . . . . . Actions | -11 -10 -10 -9 -9 -9 -9 -6 -6 -6 -6 -6 -6 -5 -5 -4 -4 -4 -4 -4 -4 -4 -3 -3 -2 -2 -1 --------- Run | Yrd Mat Min Mat Sto Rec Scr Fac Was Fac Low Low Dat Pro Fac Fac Was Fac Ext Cet Arc Hub Res DSF Res Tes Acc Total 17737 | 65 1065 243 1485 950 287 1465 74 362 1162 1185 406 99 988 715 255 1088 415 1161 504 255 233 89 171 1045 1073 897 Wait 2137 | . 379 18 341 132 6 . 1 5 186 21 . . 56 140 7 90 31 58 102 76 34 8 31 190 166 59 Move 13496 | 49 617 210 974 719 277 1422 64 305 781 1071 368 91 833 446 204 938 343 952 357 153 148 60 111 658 656 689 Hop 1 | . . . . . . . . . . . . . . . . . . . . . . . . . . 1 Pick Up 262 | 2 17 4 18 9 . 26 1 7 28 8 7 . 10 20 8 21 5 11 6 . 1 3 3 19 24 4 Fast Attach 197 | 7 . . 9 7 . 2 . 3 11 2 6 3 12 8 4 7 4 1 5 3 9 2 2 17 43 30 Attach 118 | 1 3 . 3 . . . 6 . 7 8 . . 9 12 3 1 1 5 1 . 1 4 . 17 25 11 Detach 69 | 1 . . 3 1 . 2 . 1 5 2 1 2 5 5 2 . 1 2 . 1 1 2 1 9 15 7 Swap 226 | . 5 1 18 11 1 5 1 7 23 21 4 . 7 17 5 6 7 15 6 4 4 4 4 28 13 9 Drop 315 | . 6 4 29 16 . 8 1 7 35 4 13 3 14 18 12 13 10 13 15 2 3 2 4 32 31 20 Fire 666 | 5 37 5 53 48 3 . . 26 83 45 6 . 40 38 6 6 11 20 12 13 22 1 15 62 86 23 Melee 125 | . . . 2 7 . . . 1 . 3 1 . 2 11 4 6 2 16 . 3 1 . . 10 14 42 Ram 1 | . . . . . . . . . . . . . . . . . . . . . . . . . . 1 Kick . | . . . . . . . . . . . . . . . . . . . . . . . . . . . Crush 15 | . 1 1 1 . . . . . 3 . . . . . . . . 2 . . . 3 . 3 . 1 Escape Stasis . | . . . . . . . . . . . . . . . . . . . . . . . . . . . Rewire 66 | . . . . . . . . . . . . . . . . . . 66 . . . . . . . . Trap 43 | . . . 34 . . . . . . . . . . . . . . . . . 9 . . . . . Miscellaneous . | . . . . . . . . . . . . . . . . . . . . . . . . . . . Route ------- -11/Scrapyard -10/Materials (discovered 5 exits: *Mat x3 / *Min / *Sub) -10/Mines -9/Materials (discovered 4 exits: *Mat x2 / Min / *Sto) -9/Storage (discovered 2 exits: *Mat / *Rec) -9/Recycling -9/Scraptown (discovered 2 exits: *Fac x2) -6/Factory -6/Waste -6/Factory -6/Lower Caves -6/Lower Caves (discovered 2 exits: Fac / *Dat) -6/Data Miner -5/Proximity Caves -5/Factory (discovered 4 exits: *Fac x4) -4/Factory -4/Waste -4/Factory -4/Extension (discovered 2 exits: *Res / *Cet) -4/Cetus (discovered 2 exits: *Res / [*Arc]) -4/Archives (discovered 2 exits: *Res / *Hub) -4/Hub_04(d) (discovered 4 exits: *Res x4) -3/Research -3/DSF -2/Research -2/Testing -1/Access History --------- Turn | Location | Event 21 | -11/Scrapyard | Discovered new exit (range 16) 107 | -11/Scrapyard | Entered Materials 306 | -10/Materials | Build established: Mutant 789 | -10/Materials | Discovered new exit (range 16) 907 | -10/Materials | Derelicts attacked the area 1110 | -10/Materials | Identified exit to Materials 1138 | -10/Materials | Learned 2 Materials zone layouts 1139 | -10/Materials | Identified exit to Mines 1139 | -10/Materials | Identified exit to Subcaves 1140 | -10/Materials | Learned 2 Materials zone layouts 1141 | -10/Materials | Learned location of 2 exits from Materials 1143 | -10/Materials | Loaded intel: 17 trap records 1560 | -10/Materials | Repaired Lgt. Treads 1613 | -10/Materials | Entered Mines 1659 | -10/Mines | Met a Derelict bent on vengeance 1695 | -10/Mines | Found a hidden stash of uninstalled traps 1903 | -10/Mines | Excavation squad dispatched 1903 | -10/Mines | A large section of the Mines collapsed 1984 | -10/Mines | Discovered exit to Materials (range 3) 1992 | -10/Mines | Entered Materials 1992 | -9/Materials | Evolved 2 slots: Weapon x2 1993 | -9/Materials | Identified exit to Mines 1994 | -9/Materials | Identified exit to Materials 1994 | -9/Materials | Identified exit to Storage 2283 | -9/Materials | Build established: Gunner 2916 | -9/Materials | Build established: Scavenger-Gunner 3312 | -9/Materials | Learned Storage emergency access door positions 3401 | -9/Materials | Build established: Gunner 3425 | -9/Materials | Learned location of Zion (-7) 3503 | -9/Materials | Learned Storage trap positions 3548 | -9/Materials | Learned Storage trap positions 3605 | -9/Materials | Learned 2 Materials zone layouts 4186 | -9/Materials | Entered Storage 4187 | -9/Storage | Loaded intel: 18 trap records 4309 | -9/Storage | Garrison activated, responded to threat 4431 | -9/Storage | Destroyed 8 combat bots 4454 | -9/Storage | Assisted by bots powering up and referring to "LRC-V3" 4586 | -9/Storage | First assault squad dispatched 4687 | -9/Storage | Lost 4 allies 4923 | -9/Storage | Repaired Imp. Treads 5169 | -9/Storage | Core integrity fell below 50% 5267 | -9/Storage | Discovered exit to Materials (range 16) 5283 | -9/Storage | Learned Materials terminal intel 5333 | -9/Storage | Repaired Imp. EM Shotgun 5366 | -9/Storage | Repaired Imp. Treads 5367 | -9/Storage | Learned Materials stockpile data 5395 | -9/Storage | Learned Materials emergency access door positions 5415 | -9/Storage | Identified exit to Recycling 5448 | -9/Storage | Learned location of 1 exit from Storage 5677 | -9/Storage | Used back door to open Recycling access 5681 | -9/Storage | Entered Recycling 6104 | -9/Recycling | Scanned before Scraplab entrance 6127 | -9/Recycling | Entered Scraplab 6139 | -9/Recycling | Discovered new exit (range 3) 6143 | -9/Recycling | Entered Scraptown 6143 | -9/Scraptown | System corruption cleaned by C-Scrubber 6495 | -9/Scraptown | Discovered new exit (range 11) 6757 | -9/Scraptown | Visited Fellowship of the Rings 6812 | -9/Scraptown | Visited CR-KLE's Repair Center 6837 | -9/Scraptown | Visited CPS Storage 6946 | -9/Scraptown | Visited Symbiants 7045 | -9/Scraptown | Visited Cyclists 7109 | -9/Scraptown | Visited Comm Corps 7189 | -9/Scraptown | Visited UFD Registry 7189 | -9/Scraptown | Registered with UFD as "Longtalker" 7304 | -9/Scraptown | Visited Junk Repository 7403 | -9/Scraptown | Visited Scrapoid Research Area 7455 | -9/Scraptown | Visited Abandonware Association 7502 | -9/Scraptown | Learned abandonware demo "REBOOT5.EXE" 7534 | -9/Scraptown | Visited Scrapoid Pod Storage 7573 | -9/Scraptown | Visited Infowarlord's Domain 7600 | -9/Scraptown | Visited Curators Association 7647 | -9/Scraptown | Visited Botcube Research 7667 | -9/Scraptown | Visited DA-N13 Charitable Foundation 7673 | -9/Scraptown | Found DCF Scrap (27 items) 7713 | -9/Scraptown | Visited Derelict Rescue Squad 7930 | -9/Scraptown | Found Exp. Terrain Scanner 8398 | -9/Scraptown | CR-KLE repaired 4 parts 8567 | -9/Scraptown | Entered Cyclist Reading Room 8731 | -9/Scraptown | Met Optimus 8731 | -9/Scraptown | Accepted into 0bPrime 8820 | -9/Scraptown | Discovered new exit (range 3) 8823 | -9/Scraptown | Entered Factory 8823 | -6/Factory | Evolved 6 slots: Power x1, Propulsion x2, Utility x2, Weapon x1 8925 | -6/Factory | Sucked down chute 8925 | -6/Factory | Entered Waste 8954 | -6/Waste | Spotted C-40 Crusher 8956 | -6/Waste | Destroyed C-40 Crusher 8997 | -6/Waste | Spotted C-40 Crusher 9002 | -6/Waste | Spotted C-40 Crusher 9004 | -6/Waste | Spotted C-40 Crusher 9009 | -6/Waste | Spotted C-40 Crusher 9013 | -6/Waste | Destroyed C-40 Crusher 9019 | -6/Waste | Spotted C-40 Crusher 9021 | -6/Waste | Destroyed C-40 Crusher 9052 | -6/Waste | Rewired C-40 Crusher 9057 | -6/Waste | Rewired C-40 Crusher 9075 | -6/Waste | Allies destroyed C-40 Crusher 9087 | -6/Waste | Destroyed Crusher 5a 9183 | -6/Waste | Destroyed Crusher 5b 9439 | -6/Waste | Discovered new exit (range 11) 9519 | -6/Waste | Entered Factory 10014 | -6/Factory | Build established: Scavenger-Gunner 10138 | -6/Factory | Loaded intel: 8 recycling unit locations 10404 | -6/Factory | Learned location of Protoforge (-3) 10496 | -6/Factory | Garrison activated, responded to threat 10594 | -6/Factory | Build established: Scavenger-Tank 10617 | -6/Factory | Attached CPS modules to H-61 Shepherd. 10699 | -6/Factory | Discovered new exit (range 15) 10778 | -6/Factory | Identified exit to Lower Caves 11189 | -6/Factory | Scrapoid reinforcements arrived 11269 | -6/Factory | First assault squad dispatched 11486 | -6/Factory | Found Active Sensor Suite 11555 | -6/Factory | Entered Lower Caves 11602 | -6/Lower Caves | Lost 4 parts (1p1n1u1w) 11638 | -6/Lower Caves | Learned Factory interactive machine intel 11687 | -6/Lower Caves | Found Prototype Device 12181 | -6/Lower Caves | Build established: Scavenger-Skirmisher 12455 | -6/Lower Caves | Learned location of 1 exit from Factory 12749 | -6/Lower Caves | Encountered a Warlord checkpoint 13429 | -6/Lower Caves | Ambushed by research squad 13725 | -6/Lower Caves | Build established: Scavenger-Gunner 13924 | -6/Lower Caves | Discovered new exit (range 8) 14254 | -6/Lower Caves | Attracted the attention of an 0b10 base 14293 | -6/Lower Caves | Destroyed 8 combat bots 14346 | -6/Lower Caves | Learned Factory garrison access intel 14346 | -6/Lower Caves | Learned Extension garrison access intel 14346 | -6/Lower Caves | Learned Factory security intel 14432 | -6/Lower Caves | Entered another Lower Caves area 14683 | -6/Lower Caves | Encountered a Warlord checkpoint 14991 | -6/Lower Caves | Identified exit to Factory 15052 | -6/Lower Caves | Discovered new exit (range 6) 15072 | -6/Lower Caves | Build established: Pyromaniac-Gunner 15099 | -6/Lower Caves | Entered Data Miner 15102 | -6/Data Miner | Discovered new exit (range 6) 15132 | -6/Data Miner | Met Data Miner 15171 | -6/Data Miner | Learned location of Section 7 (-3) 15171 | -6/Data Miner | Acquired the access code to Warlord's prototype stash 15188 | -6/Data Miner | Received God Mode back door access code from Data Miner 15252 | -6/Data Miner | Entered Proximity Caves 15478 | -5/Proximity Caves | Core integrity fell below 50% 15544 | -5/Proximity Caves | Destroyed 10 combat bots 15544 | -5/Proximity Caves | Lost 5 parts (1p1n1u2w) 15587 | -5/Proximity Caves | Learned Armory trap positions 15649 | -5/Proximity Caves | Learned location of 2 exits from Factory 15741 | -5/Proximity Caves | Learned 4 Factory zone layouts 15830 | -5/Proximity Caves | Build established: Tank 16200 | -5/Proximity Caves | Spotted B-75 Beast 16229 | -5/Proximity Caves | Destroyed B-75 Beast 16798 | -5/Proximity Caves | Discovered exit to Factory (range 19) 16869 | -5/Proximity Caves | Entered Factory 16869 | -5/Factory | Evolved 2 slots: Propulsion x1, Weapon x1 16870 | -5/Factory | Identified exit to Factory 16873 | -5/Factory | Loaded intel: 54 interactive machine locations 16874 | -5/Factory | Loaded intel: 4 garrison access locations 17024 | -5/Factory | Identified exit to DSF 17075 | -5/Factory | Loaded intel: 8 recycling unit locations 17102 | -5/Factory | Incoming investigation squad redirected 17165 | -5/Factory | Build established: Executioner 17295 | -5/Factory | Incoming investigation squad redirected 17457 | -5/Factory | Central database locked down 17553 | -5/Factory | Hacking Suite fried by hacking feedback 17556 | -5/Factory | Discovered exit to Factory (range 7) 17578 | -5/Factory | Build established: Scavenger-Executioner 17616 | -5/Factory | Lost 4 parts (1p1n1u1w) 17875 | -5/Factory | Entered another Factory area 17875 | -4/Factory | Evolved 2 slots: Propulsion x1, Weapon x1 17996 | -4/Factory | Allied Derelicts emerged from ambush trap array 18088 | -4/Factory | Loaded intel: 8 recycling unit locations 18106 | -4/Factory | Incoming investigation squad redirected 18156 | -4/Factory | P-70 Sage assimilated allied YH-JPP(g) 18258 | -4/Factory | Sucked down chute 18258 | -4/Factory | Entered Waste 18258 | -4/Waste | The area was eerily silent 18547 | -4/Waste | Discovered new exit (range 12) 18705 | -4/Waste | Identified Heart of Steel 19159 | -4/Waste | Heart of Steel transformed into Warbot 19172 | -4/Waste | Murdered 4 allies 19769 | -4/Waste | Entered Factory 19769 | -4/Factory | Accompanied by 1 ally (Warbot) 19854 | -4/Factory | Loaded intel: 8 recycling unit locations 19880 | -4/Factory | Incoming investigation squad redirected 20064 | -4/Factory | Scraphulk reinforcements arrived 20064 | -4/Factory | Attached CPS modules to 04F01-K. 20066 | -4/Factory | Attached CPS modules to Warbot. 20067 | -4/Factory | Incoming investigation squad redirected 20425 | -4/Factory | Discovered new exit (range 6) 20439 | -4/Factory | Entered Extension 20439 | -4/Extension | Accompanied by 2 allies (Warbot) 20571 | -4/Extension | Spotted B-86 Titan 20583 | -4/Extension | Spotted B-86 Titan 20591 | -4/Extension | Allies destroyed B-86 Titan 20599 | -4/Extension | Allies destroyed B-86 Titan 20704 | -4/Extension | Rescued a captive Derelict 20705 | -4/Extension | Rescued a captive Derelict 20747 | -4/Extension | Rescued a captive Derelict 20773 | -4/Extension | Rescued a captive Derelict 20774 | -4/Extension | Rescued a captive Derelict 20871 | -4/Extension | Rescued a captive Derelict 20871 | -4/Extension | Rescued a captive Derelict 21115 | -4/Extension | Rescued a captive Derelict 21117 | -4/Extension | Rescued a captive Derelict 21590 | -4/Extension | Rescued a captive Derelict 21590 | -4/Extension | Rescued a captive Derelict 21681 | -4/Extension | Rescued A7 21804 | -4/Extension | Discovered new exit (range 10) 21806 | -4/Extension | Discovered new exit (range 6) 21880 | -4/Extension | Build established: Commander-Executioner 22287 | -4/Extension | Entered Cetus 22287 | -4/Cetus | Accompanied by 20 allies (incl. A7, Warbot) 22292 | -4/Cetus | Acquired a Cetus Manufacturing Module code from A7 22308 | -4/Cetus | Spotted Cetus Guard 22308 | -4/Cetus | Spotted Cetus Guard 22310 | -4/Cetus | Destroyed Cetus Guard 22312 | -4/Cetus | Spotted Cetus Guard 22318 | -4/Cetus | Destroyed Cetus Guard 22326 | -4/Cetus | Destroyed Cetus Guard 22326 | -4/Cetus | Destroyed Cetus Guard 22354 | -4/Cetus | Lost 3 allies 22437 | -4/Cetus | Started Cetus Manufacturing Module 22456 | -4/Cetus | Escorted A7 to Cetus Mainframe 22462 | -4/Cetus | Manufactured an Enhanced Grunt 22487 | -4/Cetus | Manufactured an Enhanced Grunt 22496 | -4/Cetus | Discovered new exit (range 16) 22512 | -4/Cetus | Manufactured an Enhanced Grunt 22531 | -4/Cetus | Spotted Cetus Guard 22531 | -4/Cetus | Spotted Cetus Guard 22533 | -4/Cetus | Spotted Cetus Guard 22534 | -4/Cetus | Spotted Cetus Guard 22537 | -4/Cetus | Manufactured an Enhanced Grunt 22541 | -4/Cetus | Destroyed Cetus Guard 22541 | -4/Cetus | Allies destroyed Cetus Guard 22545 | -4/Cetus | Destroyed Cetus Guard 22550 | -4/Cetus | Allies destroyed Cetus Guard 22562 | -4/Cetus | Manufactured an Enhanced Grunt 22572 | -4/Cetus | Discovered new exit (range 16) 22583 | -4/Cetus | Met Revision 17 22865 | -4/Cetus | Build established: Scavenger-Executioner 23037 | -4/Cetus | Security sweep announced 23062 | -4/Cetus | Entered Archives 23062 | -4/Archives | Accompanied by 9 allies (A7) 23067 | -4/Archives | Received a hacking code to weaken MAIN.C 23157 | -4/Archives | Lost 4 allies 24395 | -4/Archives | Discovered new exit (range 16) 24420 | -4/Archives | Discovered new exit (range 16) 24470 | -4/Archives | Entered Hub_04(d) 24470 | -4/Hub_04(d) | Accompanied by 4 allies 24579 | -4/Hub_04(d) | Identified exit to Research 24579 | -4/Hub_04(d) | Watched by a mysterious "MATRIX" hacker. 24858 | -4/Hub_04(d) | Network Hub disabled 24873 | -4/Hub_04(d) | Entered Research 24873 | -3/Research | Evolved 2 slots: Power x1, Weapon x1 25005 | -3/Research | Identified exit to DSF 25026 | -3/Research | Entered DSF 25069 | -3/DSF | Additional patrols routed to DSF 25196 | -3/DSF | Discovered new exit (range 15) 25217 | -3/DSF | Sterilization system engaged 25237 | -3/DSF | Ambient heat levels rising (+10) 25241 | -3/DSF | Destroyed 7 combat bots 25252 | -3/DSF | Ambient heat levels rising (+10) 25267 | -3/DSF | Ambient heat levels rising (+10) 25282 | -3/DSF | Ambient heat levels rising (+10) 25297 | -3/DSF | Ambient heat levels rising (+10) 25312 | -3/DSF | Ambient heat levels rising (+10) 25314 | -3/DSF | Entered Research 25314 | -2/Research | Evolved 2 slots: Propulsion x2 25363 | -2/Research | Scraphulk reinforcements arrived 25365 | -2/Research | Attached CPS modules to 02R02-K. 25392 | -2/Research | Garrison activated, responded to threat 25417 | -2/Research | Found Adv. Powered Armor 25420 | -2/Research | Found Adv. Powered Armor 25423 | -2/Research | Found Adv. Powered Armor 25463 | -2/Research | Destroyed 02R02-K 25520 | -2/Research | Destroyed 13 combat bots 25541 | -2/Research | Found Prototype Device 25541 | -2/Research | Identified Exp. Weapon Cycler 25574 | -2/Research | Found Exp. Weapon Cycler 25804 | -2/Research | Incoming investigation squad redirected 25845 | -2/Research | Found Prototype Device 25845 | -2/Research | Identified Exp. Shock Absorption System 26064 | -2/Research | First assault squad dispatched 26081 | -2/Research | Incoming assault squad redirected 26084 | -2/Research | Incoming assault squad redirected 26115 | -2/Research | Spotted B-90 Cyclops 26589 | -2/Research | Found Prototype Device 26589 | -2/Research | Identified Exp. Transmission Jammer 26597 | -2/Research | Found Exp. Transmission Jammer 26746 | -2/Research | Discovered new exit (range 25) 26920 | -2/Research | System corruption reached 10% 26940 | -2/Research | Entered Testing 26967 | -2/Testing | Lost 4 parts (4w) 26999 | -2/Testing | Found Prototype Hackware 27034 | -2/Testing | Identified Ghost Barrier 27514 | -2/Testing | Scanned by Researcher 27718 | -2/Testing | Found Prototype Launcher 27718 | -2/Testing | Identified Adv. Micro-nuke Launcher 27736 | -2/Testing | Garrison activated, responded to threat 27769 | -2/Testing | Lost 3 parts (2u1w) 27772 | -2/Testing | Destroyed 8 combat bots 27773 | -2/Testing | Found Adv. Micro-nuke Launcher 27776 | -2/Testing | Found Adv. Micro-nuke Launcher 27830 | -2/Testing | Found Prototype Device 27830 | -2/Testing | Identified Exp. EM Shield 28052 | -2/Testing | Destroyed 7 combat bots 28155 | -2/Testing | Discovered new exit (range 15) 28251 | -2/Testing | Spotted Alpha 7 28308 | -2/Testing | Attached CPS modules to Alpha 7. 28323 | -2/Testing | Destroyed Alpha 7 28354 | -2/Testing | Found Prototype Device 28354 | -2/Testing | Identified Exp. ECM Suite 28358 | -2/Testing | Found Prototype Processor 28358 | -2/Testing | Identified Exp. Targeting Computer 28368 | -2/Testing | Found Prototype Ballistic Gun 28368 | -2/Testing | Identified Multirail 28372 | -2/Testing | Found Prototype Energy Gun 28372 | -2/Testing | Identified Enh. Gamma Rifle 28426 | -2/Testing | Found Prototype Launcher 28426 | -2/Testing | Identified Tesla Bomb Launcher 28440 | -2/Testing | First assault squad dispatched 28486 | -2/Testing | System corruption reached 30% 28538 | -2/Testing | Lost 9 parts (1n2u6w) 28612 | -2/Testing | Found Prototype Processor 28643 | -2/Testing | Found Prototype Processor 28643 | -2/Testing | Identified Exp. Melee Analysis Suite 28649 | -2/Testing | Found Exp. Melee Analysis Suite 28652 | -2/Testing | Found Corrupted Exp. Melee Analysis Suite 28686 | -2/Testing | Entered Access 28686 | -1/Access | Evolved 2 slots: Propulsion x2 28863 | -1/Access | Identified Exp. Target Analyzer 28936 | -1/Access | First assault squad dispatched 28950 | -1/Access | Build established: Scavenger-Gladiator 28957 | -1/Access | Incoming assault squad redirected 29120 | -1/Access | Crushed by falling debris 29120 | -1/Access | Incoming assault squad redirected 29144 | -1/Access | Garrison activated, responded to threat 29164 | -1/Access | System corruption reached 10% 29176 | -1/Access | Spotted B-99 Colossus 29206 | -1/Access | Lost 9 parts (2p5n2w) 29335 | -1/Access | Crushed by falling debris 29372 | -1/Access | Lost 4 parts (2n1u1w) 29428 | -1/Access | Core integrity fell below 50% 29463 | -1/Access | Build established: Mutant 29464 | -1/Access | Incoming assault squad redirected 29512 | -1/Access | System corruption reached 30% 29575 | -1/Access | Found Unknown Launcher 29592 | -1/Access | Core integrity fell below 20% 29613 | -1/Access | Destroyed by Q615-h with Ragnarok Missile Launcher Last Messages --------------- 29588_ Critical hit (Burn: +37). 29589_ Dropped Neutron Missile Launcher. 29589_ Dropped Lance. 29590_ Dropped Exp. Transmission Jammer. 29590_ Biometal Leg destroyed. 29592_ K-01 Serf collects debris. 29593_ System corrupted: Component data lost. 29596_ Q615-h: IFF CHECK FAIL. 29597_ Identified Gravity Flail. 29597_ Faulty integration damages Adv. Heat Sink (-14). 29598_ Dropped Faulty Gravity Flail. 29607_ Adv. Sensor Array destroyed. 29607_ TF Node disabled. 29607_ Adv. Sensor Array tumbles out of TF Node. 29607_ Penetrated by Slug. 29607_ Slug penetrates Q615-h. 29609_ Lgt. Quantum Reactor destroyed. 29611_ System corrupted: Energy discharge (-22). 29611_ Penetrated by Slug. 29613_ The unstable cave ceiling collapses. Map ----- +----------------------------------------------------+ | ##?# =#?????????# # | | #??# #?????????# # | | #??# #?????????# ############# # | | #??# #?????????# ## ## # | | #??# #?????????# ## ] ## # | | #??# #?????????# # ## # | | ##?#######+######????????## ]]] * ## # | | ####### ############## /%]! / / | | ! ]]] #### | | % % ! #??# | | ####### ############## ] *% #??###### | | ###?????## ##???########### !######?????? | | ?????????# #????#* # # #?????? | | ?????????# #????# # #?????? | | ?????????# #????# + # #?????? | | ?????????# #????# # #?????? | | ?????????# #????# Y g# # """"" #?????? | | ?????????# #????# g# ; """""""" #?????? | | ?????????# #????# # # """""""" #?????? | | ?????????# #????# # # """"" #?????? | | ????????? #????### # # #?????? | | ????????? #??????# # #?????? | | ????????? ???????# # # #?????? | | ???????????????????# + #?????? | | ???????????????????# +##############?????? | | ???????????????????## @ !!!#????????????? | | ????????????????????## !!!#????????????? | | ?????????????????????##Q# # !!!#????????????? | | ??????????????????????# ###= [ ! #????????????? | | ?????????????##########/### #????????????? | | ?????????? ?# ## "" "" #????????????? | | ?????????? ?# ## ""T"" #????????????? | | ?????????? ?# ## """ #????????????? | | ?????????# ?# ##########??????????????? | | ?????????# ## #???????????????????????? | | ?????????# ## #???????????????????????? | | ???####### ## #???????????????????????? | | ? ## #???????????????????????? | | ## #???????????????????????? | | ## #???????????????????????? | | """ ## #???????????????????????? | | ""T"" ## #???????????????????????? | | "" "" ## #???????????????????????? | | ###+##########???????????????????????? | | #?????????????????????????????? | | #?????????????????????????????? | | #####+##?????????????????????????????? | | # ?! ?????????????????????????????? | | # ???????????????????????????? | | + ?????????????????????????? | +----------------------------------------------------+ Best States ------------- Heat Dissipation 110 Coolant Potential 65 Energy Generation 67 Energy Capacity 850 Matter Stores 300 Matter Capacity 300 Sight Range 16 Robot Scan Range 20 Terrain Scan Range 30 Terrain Scan Density 85 Base Temperature (-) 100 Corruption Containment 12 Armor Coverage 300 Resistance: KI 20 Resistance: TH 25 Core Shielding 30 Weapon Cycling 30 Evasion (%) 62 Targeting Accuracy 12 Melee Accuracy 24 Target Analysis 8 Core Analysis 6 Armor Integrity Analysis 40 Recoil Reduction 8 Salvage Targeting 4 Offensive Hacking 10 Defensive Hacking 10 Trap Extractor Capacity 4 Item Schematics ----------------- Hcp. Storage Unit | -9/Recycling | Hacked Combat Drone Bay | -6/Data Miner | Free Lgt. Regenerative Plating | -6/Data Miner | Free Enh. Armored Leg | -6/Data Miner | Free Adv. EM Disruption Field | -6/Data Miner | Free Cld. Plasma Rifle | -6/Data Miner | Free Imp. Antigrav System | -6/Data Miner | Free Adv. Reaction Control System | -6/Data Miner | Free Hvy. Gauss Cannon | -6/Data Miner | Free HERF Cannon | -6/Data Miner | Free Variable Charge Gun | -6/Data Miner | Free Adv. Hardlight Generator | -6/Data Miner | Free Q-thruster | -6/Data Miner | Free Adv. Weapon Cycler | -6/Data Miner | Free Exp. Energy Well | -2/Testing | Archive Hvy. Tesla Rifle | -2/Testing | Archive Exp. Shock Absorption System | -2/Testing | Archive Gui. Micro-nuke Launcher | -2/Testing | Archive Exp. Core Analyzer | -2/Testing | Archive Robot Schematics ------------------ M-13 Machinist | -9/Materials | Hacked M-22 Extractor | -6/Data Miner | Free E-15 Imp | -6/Data Miner | Free B-60 Warrior | -6/Data Miner | Free L-41 Fighter | -6/Data Miner | Free L-61 Swordsman | -6/Data Miner | Free A-27 Freighter | -6/Data Miner | Free H-66 Slayer | -6/Data Miner | Free Fabricated ------------ Nothing Repaired ---------- Lgt. Treads | 25% | -10/Materials Imp. Treads | 27% | -9/Storage Imp. EM Shotgun | 35% | -9/Storage Imp. Treads | 70% | -9/Storage Studied --------- Hvy. Treads | -5/Factory | Hacked KE Penetrator | -5/Factory | Hacked Hpw. Shock Rifle | -5/Factory | Hacked Coil Gun | -4/Factory | Hacked Railgun | -3/Research | Hacked Quantum Reactor | -2/Research | Hacked Alien Tech Used ----------------- None Achievements -------------- Brother of Steel Like A Rock Challenges ------------ None Game ------ Seed ChromionTechThrower Manual? 0 Play Time 03:32:07 Cumulative 744.5 hours Start 2026.02.01 @ 12:38:46 End 2026.02.01 @ 16:13:23 Sessions 1 Manual Loads 0 Difficulty Rogue Special Mode None Game No. 236 Rogue 220 Adventurer 15 Explorer 1 Win Type - Total 43 Types 12/5/10/2/2/0/6/3/1/2 Lore% 96 Gallery% 91 Achievement% 74 Wizard Run 0 Options --------- Layout 0 ASCII 0 Keyboard 0 Movement Numpad Keybinds 0 Fullscreen 1 Font 18/SmallcapsGlow Map View 76x50 Zoom Use 0% Tactical HUD 1 Map Filters NONE Filters NONE Steam 1 RUN: d9ba4de4-0511-45a4-8521-418f42b4c10e